bitfinex-derivatives/quotes_ETHF0:USTF0_20250912
["timestamp","ask_amount","ask_price","bid_price","bid_amount"]
[1757641796970,0.4107,4510.6,4510.5,1.0589]
[1757641797166,0.1971,4510.6,4510.5,1.0589]
[1757641797373,0.73364686,4510.6,4510.5,0.9313]
[1757641799375,0.73364686,4510.6,4510.5,1.0502]
[1757641799780,0.03054686,4510.6,4510.5,2.33967875]
[1757641801277,0.75774686,4510.6,4510.5,0.7063]
[1757641801577,0.75774686,4510.6,4510.1,0.7163]
[1757641801578,0.7272,4510.2,4510.1,0.7163]
[1757641801781,0.314,4510.1,4509.2,3.5175]
[1757641802086,0.2032,4509.3,4509.2,3.9241]
[1757641802290,0.314,4509.6,4509.2,3.6144]
[1757641802582,0.7272,4509.6,4509.5,0.4066]
[1757641803178,0.7272,4509.6,4509.5,0.2136]
[1757641804484,0.7272,4509.6,4509.5,0.7163]
[1757641805874,3.5218,4510.0,4509.8,0.4066]
[1757641806077,0.2032,4509.9,4509.8,0.4066]
[1757641806373,3.2078,4510.0,4509.8,0.4066]
[1757641806583,3.2078,4510.0,4509.9,0.3097]
[1757641806776,3.2078,4510.0,4509.9,0.7163]
[1757641808083,0.5172,4510.3,4510.2,0.4066]
[1757641808385,0.7272,4510.6,4510.5,0.8352]
[1757641808679,0.7272,4510.6,4510.5,0.7163]
[1757641808876,0.7272,4510.6,4510.5,0.2136]
[1757641809279,0.7272,4510.6,4510.5,0.7163]
[1757641810985,0.7272,4510.6,4509.5,0.1189]
[1757641810986,0.4132,4510.3,4509.7,0.225]
[1757641811487,0.2032,4509.8,4509.7,0.9413]
[1757641811682,0.7272,4509.8,4509.7,19.6413]
[1757641811987,0.7272,4509.8,4509.7,19.4163]
[1757641812186,0.7272,4509.8,4509.7,19.6413]
[1757641812388,0.4132,4509.8,4509.7,19.6413]
[1757641813184,0.2032,4509.8,4509.7,19.6413]
[1757641813391,3.5218,4510.7,4510.1,0.3097]
[1757641813583,3.935,4510.7,4510.6,0.7163]
[1757641814282,3.411,4510.7,4510.6,0.7163]
[1757641814482,3.935,4510.7,4510.6,0.7163]
[1757641815683,3.935,4510.7,4510.6,0.225]
[1757641816390,3.935,4510.7,4510.6,0.9413]
[1757641816582,3.621,4510.7,4510.6,0.9413]
[1757641817390,3.935,4510.7,4510.6,0.9413]
[1757641818092,3.935,4510.7,4510.5,0.225]
[1757641818596,0.848,4510.5,4510.4,0.225]
[1757641819482,0.534,4510.5,4509.7,21.9078]
[1757641819691,0.314,4510.4,4509.9,0.3097]
[1757641819887,0.2032,4510.0,4509.9,0.7163]
[1757641820085,0.7272,4510.5,4510.4,0.7163]
[1757641820285,0.848,4510.5,4510.4,0.4066]
[1757641821592,0.848,4510.5,4510.4,0.7163]
[1757641822288,0.7272,4510.5,4510.4,1.76275956]
[1757641824190,0.2032,4510.5,4510.4,1.76275956]
[1757641824396,0.5172,4510.8,4510.7,0.193]
[1757641824596,0.314,4510.7,4510.6,1.35615956]
[1757641824897,1.31609505,4510.7,4510.6,1.56975956]
[1757641825084,1.31609505,4510.7,4510.6,1.04645956]
[1757641825287,1.31609505,4510.7,4510.5,0.225]
[1757641825489,1.00209505,4510.6,4510.5,0.225]
[1757641825688,1.31609505,4510.6,4510.5,0.225]
[1757641826601,0.848,4510.5,4510.4,0.2136]
[1757641826799,1.43689505,4510.5,4510.4,0.2136]
[1757641828595,1.31609505,4510.5,4510.4,0.412]
[1757641828795,1.31609505,4510.5,4510.4,0.7302]
[1757641833315,1.00209505,4510.5,4510.4,0.7302]
[1757641833511,0.58889505,4510.5,4510.4,0.7302]
[1757641833809,3.2078,4510.9,4510.6,0.4032]
[1757641834006,0.79631082,4510.8,4510.7,0.7214]
[1757641834208,1.10691082,4510.8,4510.7,0.669906]
[1757641834716,0.207,4510.8,4510.7,3.877706]
[1757641835210,0.4002,4511.5,4511.4,0.4032]
[1757641835411,0.4002,4511.5,4511.4,1.44965956]
[1757641835606,0.98967812,4511.5,4511.4,1.44965956]
[1757641835808,0.58947812,4511.5,4511.4,1.44965956]
[1757641836011,0.5176,4512.0,4511.9,0.4032]
[1757641836306,1.10718364,4512.0,4511.9,0.7214]
[1757641836506,1.30038364,4512.0,4511.9,0.7214]
[1757641837114,1.30038364,4512.0,4511.9,1.76785956]
[1757641837708,3.2078,4512.3,4511.9,1.76785956]
[1757641837709,3.5184,4512.3,4511.9,1.76785956]
[1757641837910,0.207,4512.2,4512.1,0.7214]
[1757641838618,0.207,4512.2,4512.1,0.9464]
[1757641838912,0.5176,4512.2,4512.1,1.99285956]
[1757641839110,0.207,4512.2,4512.1,1.99285956]
[1757641840312,0.5176,4512.5,4512.4,0.4032]
[1757641840511,0.7108,4512.5,4512.4,0.7214]
[1757641841013,0.7108,4512.4,4511.9,0.3182]
[1757641841218,0.8343,4512.0,4511.9,0.2048]
[1757641841420,0.7108,4511.9,4511.8,0.225]
[1757641841822,0.1235,4511.5,4511.2,0.3182]
[1757641842018,0.7108,4510.6,4510.5,4.45905956]
[1757641842226,0.7108,4510.6,4510.5,5.20065956]
[1757641842815,0.7108,4510.6,4510.5,1.25125956]
[1757641843121,0.7108,4510.6,4510.5,1.47625956]
[1757641843328,0.7108,4510.6,4510.5,1.79445956]
[1757641843518,0.7108,4510.6,4510.5,1.99285956]
[1757641844324,0.7108,4510.6,4510.5,0.9464]
[1757641845720,0.207,4510.6,4510.5,1.0658]
[1757641845925,3.9186,4511.1,4511.0,0.4032]
[1757641846114,3.9186,4511.1,4511.0,0.7214]
[1757641846512,0.7108,4511.1,4511.0,0.8408]
[1757641846713,3.4328,4511.8,4511.7,0.7214]
[1757641846714,0.4002,4511.8,4511.7,0.7214]
[1757641846917,3.9186,4511.8,4511.7,0.2048]
[1757641847117,3.608,4511.8,4511.6,0.225]
[1757641847312,0.7108,4511.7,4511.6,0.2048]
[1757641847724,0.7108,4511.7,4511.6,0.4032]
[1757641847920,0.7108,4511.7,4511.6,0.2048]
[1757641848116,0.7108,4511.3,4511.2,0.2048]
[1757641848318,3.9186,4511.3,4510.8,0.3182]
[1757641848620,0.7108,4510.6,4510.5,3.611]
[1757641849019,0.7108,4510.6,4510.5,22.6292]
[1757641849222,0.7108,4510.6,4510.5,22.8542]
[1757641849723,0.7108,4510.6,4510.5,19.6464]
[1757641850425,0.7108,4510.6,4510.5,19.7658]
[1757641852114,0.4002,4510.6,4510.5,19.7658]
[1757641852616,0.207,4510.6,4510.5,19.7658]
[1757641854125,0.207,4510.6,4510.5,19.5408]
[1757641854326,0.207,4510.6,4510.5,19.7658]
[1757641854724,0.3106,4510.9,4510.5,19.7658]
[1757641854925,0.8343,4511.0,4510.9,0.2048]
[1757641855120,0.8343,4511.0,4510.9,0.9464]
[1757641855515,0.7108,4511.0,4510.9,0.9464]
[1757641860135,0.7108,4511.0,4510.0,0.1194]
[1757641860136,0.2885,4510.9,4510.0,0.1194]
[1757641860331,0.1264,4511.0,4510.0,0.1194]
[1757641860332,0.6938,4510.7,4510.6,0.2124]
[1757641860533,0.6938,4510.7,4510.6,0.7281]
[1757641860732,0.6938,4510.7,4510.6,0.9215]
[1757641862937,0.1264,4510.5,4509.9,3.4985]
[1757641863135,0.6938,4510.0,4509.9,0.7281]
[1757641863932,0.8202,4510.0,4509.3,3.2078]
[1757641864131,0.6938,4509.5,4509.4,0.9215]
[1757641864433,0.6938,4509.5,4509.4,2.21080431]
[1757641866834,0.6938,4509.9,4509.8,0.6965]
[1757641871138,0.4053,4509.9,4509.6,0.225]
[1757641871329,0.4053,4509.7,4509.6,0.4374]
[1757641871633,0.6938,4509.4,4509.3,0.2124]
[1757641871834,0.6938,4509.4,4509.3,0.4374]
[1757641872234,0.6938,4509.4,4509.3,0.7281]
[1757641872634,0.6938,4509.4,4509.3,0.9215]
[1757641872937,0.4907,4509.4,4509.3,0.9215]
[1757641873329,0.2022,4509.4,4509.3,0.9215]
[1757641873533,0.4907,4509.8,4509.7,0.6965]
[1757641873729,0.4907,4509.8,4509.7,1.98580431]
[1757641874437,0.2022,4509.8,4509.7,1.98580431]
[1757641874831,0.2885,4510.2,4510.0,0.1243]
[1757641875031,0.2022,4510.1,4510.0,0.8208]
[1757641875440,0.4907,4510.1,4510.0,0.8208]
[1757641875738,3.2078,4510.6,4510.3,0.4058]
[1757641875739,0.4907,4510.4,4510.3,0.4058]
[1757641875928,0.4907,4510.4,4510.3,0.6965]
[1757641876128,3.2078,4510.6,4510.3,0.4058]
[1757641876434,3.41,4510.6,4510.5,2.11010431]
[1757641876635,3.6985,4510.6,4510.5,2.11010431]
[1757641876834,3.2078,4510.6,4510.5,2.33510431]
[1757641877030,3.4328,4511.3,4510.5,2.04440431]
[1757641877231,4.1266,4511.3,4511.2,0.6965]
[1757641877436,4.48781463,4511.3,4511.2,0.6965]
[1757641878136,4.48781463,4511.3,4511.2,0.4058]
[1757641878433,4.48781463,4511.3,4511.2,0.2124]
[1757641881636,1.28001463,4511.3,4511.2,0.2124]
[1757641882044,1.28001463,4511.3,4511.2,0.5031]
[1757641882343,3.4963,4511.8,4511.7,0.2124]
[1757641882641,3.4963,4511.8,4511.7,0.6965]
[1757641882642,4.2852224,4511.8,4511.7,0.6965]
[1757641882845,4.4883224,4511.8,4511.7,0.6965]
[1757641883047,4.4883224,4511.8,4511.6,0.225]
[1757641883344,1.2805224,4511.7,4511.6,0.225]
[1757641883944,1.2805224,4511.7,4511.1,0.2907]
[1757641884239,0.6938,4511.7,4511.3,0.2907]
[1757641884647,0.2885,4511.7,4511.5,0.2124]
[1757641884944,0.6938,4511.6,4511.5,0.2124]
[1757641886549,0.8202,4511.0,4510.9,0.2124]
[1757641887244,0.8202,4511.0,4510.9,0.4374]
[1757641887951,0.5225,4510.5,4509.9,0.3094]
[1757641888141,0.8262,4510.0,4509.5,0.4337]
[1757641888341,0.3037,4509.9,4509.8,0.1961]
[1757641888552,0.7103,4509.9,4509.8,0.5055]
[1757641888750,0.7103,4509.9,4509.8,0.7044]
[1757641889745,0.7103,4509.9,4509.5,0.225]
[1757641889945,0.4066,4509.9,4509.5,0.5344]
[1757641890152,0.1159,4510.0,4509.5,0.5344]
[1757641890356,0.7103,4509.6,4509.5,0.7305]
[1757641890648,0.7103,4509.6,4509.5,0.9294]
[1757641891548,0.7103,4509.6,4509.5,0.7044]
[1757641892156,0.2011,4509.6,4509.5,0.8216]
[1757641892653,3.6144,4510.3,4510.2,0.1961]
[1757641892850,3.6144,4510.3,4509.7,1.59870431]
[1757641893155,3.6144,4510.3,4509.7,2.21870431]
[1757641893156,0.5048,4509.8,4509.7,2.21870431]
[1757641893345,0.7103,4509.8,4509.7,2.21870431]
[1757641893943,0.7103,4509.8,4509.7,0.7044]
[1757641894551,0.7103,4509.8,4509.7,0.395]
[1757641896853,0.7103,4509.8,4509.7,0.7044]
[1757641897660,0.3037,4509.4,4509.1,0.5055]
[1757641897858,0.7103,4509.2,4509.1,0.1961]
[1757641898063,0.7103,4509.2,4509.1,0.5055]
[1757641898257,0.7103,4509.2,4509.1,0.7044]
[1757641898668,0.7103,4509.2,4509.1,0.1961]
[1757641898966,0.7103,4508.9,4508.8,0.9294]
[1757641901564,0.7103,4508.9,4508.6,18.7]
[1757641901768,0.7103,4508.9,4508.3,3.2078]
[1757641901769,0.3037,4508.4,4508.3,3.2078]
[1757641901968,0.7103,4508.4,4508.3,3.2078]
[1757641902170,0.7103,4508.4,4508.3,0.1961]
[1757641902669,0.7103,4508.4,4508.3,0.5055]
[1757641903064,0.3037,4508.3,4507.9,18.7]
[1757641903269,0.7103,4507.8,4507.7,0.7305]
[1757641903671,0.7103,4507.8,4507.7,0.9294]
[1757641904974,0.7103,4508.4,4508.3,0.395]
[1757641905179,0.7103,4508.4,4508.3,0.7044]
[1757641906175,0.7103,4508.4,4508.3,1.99370431]
[1757641906380,0.2011,4508.4,4508.3,0.7044]
[1757641906577,3.2078,4508.6,4508.3,0.395]
[1757641906786,3.7126,4508.6,4508.5,0.7044]
[1757641906981,3.9181,4508.6,4508.5,0.7044]
[1757641907385,3.9181,4508.6,4508.5,0.1961]
[1757641907573,3.9181,4508.6,4508.1,0.5344]
[1757641907779,0.7103,4508.2,4508.0,0.225]
[1757641908083,0.4066,4508.2,4508.1,0.1961]
[1757641908277,0.4066,4508.2,4508.1,0.7044]
[1757641908878,0.3037,4508.5,4508.1,0.395]
[1757641909078,0.3037,4508.5,4508.2,0.3094]
[1757641909282,0.5048,4508.5,4508.4,0.1989]
[1757641909485,0.7103,4508.5,4508.4,0.7044]
[1757641909681,3.2078,4508.6,4508.4,0.7044]
[1757641909879,0.8262,4508.5,4508.4,0.5055]
[1757641910381,0.8262,4508.5,4508.4,0.1961]
[1757641910984,0.8262,4508.5,4508.1,0.3094]
[1757641911890,0.8262,4508.5,4507.9,0.225]
[1757641912692,0.8262,4508.5,4507.7,0.3094]
[1757641912898,0.8262,4508.5,4507.8,0.225]
[1757641913488,0.8262,4508.5,4508.4,0.5055]
[1757641913790,0.8262,4508.5,4508.4,0.7044]
[1757641913986,0.4066,4508.1,4508.0,0.3094]
[1757641914194,0.7103,4508.1,4508.0,0.7044]
[1757641918189,3.5073,4508.6,4508.1,0.3135]
[1757641918390,3.7023,4508.6,4508.5,0.8418]
[1757641919088,3.7023,4508.6,4507.8,0.225]
[1757641919089,0.701,4508.4,4508.3,0.1975]
[1757641919293,0.701,4508.4,4508.3,0.7178]
[1757641919691,0.195,4508.4,4508.3,0.7178]
[1757641919894,3.2078,4508.6,4508.5,0.8418]
[1757641920497,3.9088,4508.6,4508.5,0.8418]
[1757641920698,3.9088,4508.6,4508.5,0.7178]
[1757641920894,3.2078,4508.6,4508.5,0.8418]
[1757641921196,0.819,4509.0,4508.9,0.1975]
[1757641921697,0.819,4509.0,4508.9,0.7178]
[1757641922090,0.701,4508.6,4508.5,0.511]
[1757641922288,0.701,4508.6,4508.5,0.7178]
[1757641922496,0.118,4509.0,4508.6,0.7178]
[1757641922497,0.195,4508.7,4508.6,0.7178]
[1757641922694,0.5245,4509.1,4508.7,0.3135]
[1757641922889,0.6265,4509.1,4509.0,0.4043]
[1757641923197,0.926,4509.1,4509.0,0.7178]
[1757641923789,0.701,4509.1,4509.0,0.7178]
[1757641923991,4.0247,4510.0,4509.9,0.4043]
[1757641924295,4.4962794,4510.0,4509.9,0.7178]
[1757641924699,3.9088,4510.0,4509.9,0.7178]
[1757641925195,0.701,4510.0,4509.9,0.7178]
[1757641926391,0.701,4510.0,4509.9,1.98941506]
[1757641926908,0.4015,4509.5,4509.4,0.3135]
[1757641927096,0.701,4509.5,4509.4,0.9438]
[1757641927796,0.819,4509.5,4509.4,0.9438]
[1757641928402,0.701,4509.5,4509.4,0.9438]
[1757641929899,0.2995,4510.0,4509.5,0.124]
[1757641930100,0.195,4510.0,4509.9,0.7178]
[1757641930605,0.701,4510.0,4509.9,0.9438]
[1757641931803,1.57774581,4512.2,4509.9,0.9438]
[1757641931804,0.4945,4510.9,4510.8,0.4043]
[1757641931995,0.195,4510.9,4510.8,0.7178]
[1757641932396,0.4945,4510.9,4510.8,0.7178]
[1757641932705,3.2078,4511.7,4510.9,0.2068]
[1757641932706,0.195,4511.0,4510.9,0.2068]
[1757641932898,0.195,4511.0,4510.9,0.7178]
[1757641933099,0.701,4511.0,4510.9,0.7178]
[1757641935511,0.701,4510.4,4510.3,3.2078]
[1757641935706,0.701,4510.4,4510.3,3.4053]
[1757641936411,0.701,4510.4,4510.3,3.7188]
[1757641937910,0.701,4510.4,4510.3,3.4053]
[1757641938510,0.701,4510.4,4510.3,3.2078]
[1757641938810,0.701,4510.4,4507.2,4.69741098]
[1757641938811,0.701,4509.9,4509.8,3.2078]
[1757641939000,0.701,4509.9,4509.5,0.225]
[1757641939207,1.74761506,4509.6,4509.5,0.736]
[1757641939401,1.44811506,4509.6,4509.3,3.2078]
[1757641939608,0.701,4509.2,4509.1,0.1975]
[1757641939811,1.74761506,4509.2,4509.1,0.1975]
[1757641940005,0.4015,4508.9,4508.8,0.511]
[1757641940205,1.74761506,4508.9,4508.8,0.7178]
[1757641943507,0.701,4508.9,4508.8,0.7178]
[1757641947113,0.225,4509.4,4508.8,0.7178]
[1757641947114,0.2995,4509.4,4508.9,0.3135]
[1757641947309,0.926,4509.4,4509.3,0.7178]
[1757641948018,0.701,4509.4,4509.3,0.7178]
[1757641950226,0.2946689,4510.5,4509.3,0.7178]
[1757641950227,0.225,4509.6,4509.3,0.4043]
[1757641950416,1.04661506,4509.5,4509.0,0.124]
[1757641950618,0.706,4509.2,4509.1,0.6855]
[1757641951616,1.16651506,4509.5,4509.1,0.6855]
[1757641951819,1.23991506,4509.5,4509.4,0.3957]
[1757641952017,1.55381506,4509.5,4509.4,0.6855]
[1757641952323,3.2078,4510.1,4509.8,0.3957]
[1757641952519,0.1933,4510.1,4510.0,0.8102]
[1757641953221,1.04661506,4510.3,4509.5,0.1966]
[1757641953222,0.3921,4509.6,4509.5,0.1966]
[1757641953516,1.75261506,4509.6,4509.5,0.1966]
[1757641954321,0.8259,4509.5,4509.4,3.2078]
[1757641954913,0.5072,4509.8,4509.7,0.3957]
[1757641955114,0.5072,4509.8,4509.7,0.6855]
[1757641955311,0.1933,4509.8,4509.7,0.6855]
[1757641956619,0.706,4509.8,4509.4,22.1976]
[1757641956823,0.706,4509.6,4509.5,0.4864]
[1757641957212,0.706,4509.6,4509.5,0.6855]
[1757641958121,0.1933,4509.6,4509.5,0.8102]
[1757641958323,0.1199,4510.0,4509.5,0.5204]
[1757641958628,0.706,4509.9,4509.8,0.3957]
[1757641958826,0.706,4509.9,4509.8,0.1966]
[1757641959323,0.706,4509.9,4509.5,0.2898]
[1757641960020,0.706,4509.3,4509.2,0.4864]
[1757641960413,0.706,4509.3,4509.2,0.1966]
[1757641960723,0.8259,4509.0,4508.9,3.6942]
[1757641960918,0.8259,4509.0,4508.9,3.8933]
[1757641961225,0.706,4509.0,4508.9,3.8933]
[1757641962729,0.8259,4509.0,4508.9,3.8933]
[1757641964025,0.706,4509.0,4508.9,3.8933]
[1757641967821,1.3033101,4509.0,4508.9,3.8933]
[1757641968024,0.706,4509.0,4508.9,3.8933]
[1757641968225,1.30350799,4509.0,4508.9,3.8933]
[1757641970034,2.47002305,4509.0,4508.9,0.1966]
[1757641970428,0.706,4508.4,4508.3,3.6035]
[1757641970632,1.30350799,4508.4,4508.3,3.8933]
[1757641971331,1.30350799,4508.4,4508.3,0.6855]
[1757641972239,2.35012305,4508.4,4508.3,0.1966]
[1757641972443,2.35012305,4508.4,4508.0,0.2898]
[1757641972735,0.706,4508.1,4508.0,0.4864]
[1757641973035,0.1933,4508.1,4508.0,0.8102]
[1757641973433,0.5072,4508.1,4508.0,0.8102]
[1757641973933,0.706,4508.1,4508.0,0.8102]
[1757641974133,0.73697272,4508.1,4508.0,0.8102]
[1757641974334,0.73697272,4508.1,4508.0,0.3957]
[1757641974736,0.73697272,4508.1,4508.0,0.1966]
[1757641975433,1.78358778,4508.1,4508.0,0.1966]
[1757641976042,0.3921,4507.9,4507.8,0.4864]
[1757641976243,0.73697272,4507.9,4507.8,0.4864]
[1757641976635,0.73697272,4507.9,4507.8,0.1966]
[1757641976939,0.73697272,4507.9,4507.8,0.4864]
[1757641978539,0.53817272,4507.9,4507.8,0.6855]
[1757641978943,0.22427272,4507.9,4507.8,0.6855]
[1757641979445,0.52247272,4507.9,4507.8,0.6855]
[1757641979845,0.73327272,4507.9,4507.8,0.6855]
[1757641980946,0.73327272,4507.9,4507.1,3.2078]
[1757641980947,0.7073,4507.2,4507.1,3.6951]
[1757641981244,0.73912089,4507.2,4507.1,0.686]
[1757641984142,0.03182089,4507.2,4507.1,4.94041506]
[1757641984342,0.03182089,4507.2,4507.1,3.8938]
[1757641986049,0.03182089,4507.2,4507.1,0.90787]
[1757641986349,0.73912089,4507.2,4507.1,0.686]
[1757641986942,0.03182089,4507.2,4507.1,0.686]
[1757641987750,0.03182089,4507.2,4507.1,4.11567]
[1757641988542,0.03182089,4507.2,4507.1,8.34067]
[1757641988748,3.2078,4508.0,4507.9,0.392]
[1757641989050,3.2078,4508.0,4507.9,0.686]
[1757641989245,0.2982,4508.1,4508.0,0.8038]
[1757641989246,0.4965,4508.1,4508.0,0.8038]
[1757641990745,0.7073,4508.1,4508.0,0.686]
[1757641991045,3.2078,4508.5,4508.3,0.392]
[1757641991246,3.2078,4508.5,4508.4,0.686]
[1757641991446,3.7043,4508.5,4508.4,0.686]
[1757641992154,3.2078,4508.5,4508.4,0.686]
[1757641992455,3.7043,4508.5,4508.4,0.686]
[1757641992951,0.7073,4507.8,4507.7,3.8938]
[1757641993148,0.7073,4507.8,4507.7,0.686]
[1757641993946,0.5341,4507.5,4507.2,3.2078]
[1757641994146,0.5341,4507.5,4507.4,0.4873]
[1757641994344,0.5341,4507.5,4507.4,0.686]
[1757641994546,0.4091,4507.5,4507.4,0.686]
[1757641994754,0.7073,4507.5,4507.4,0.686]
[1757641995257,0.8323,4507.5,4507.4,0.1933]
[1757641995459,2.12315722,4507.5,4507.4,0.1933]
[1757641995758,2.12315722,4507.5,4507.1,0.294]
[1757641996449,0.8323,4507.5,4507.1,0.294]
[1757641996953,0.8323,4507.5,4506.6,3.2078]
[1757641997155,0.7073,4506.8,4506.1,3.2078]
[1757641997367,0.7073,4506.3,4506.2,0.686]
[1757642000166,0.7073,4506.3,4506.2,0.1933]
[1757642000763,0.8323,4506.0,4505.9,0.1933]
[1757642001070,0.7073,4505.7,4505.6,0.4873]
[1757642002169,0.2982,4505.6,4505.1,3.2078]
[1757642002470,0.7073,4505.6,4505.5,0.4873]
[1757642003471,0.7073,4505.6,4505.5,0.686]
[1757642004276,0.7073,4505.6,4505.5,0.8038]
[1757642004771,0.1983,4505.7,4505.6,0.294]
[1757642004972,0.1983,4505.7,4505.6,0.686]
[1757642005362,0.4965,4505.7,4505.6,0.686]
[1757642005868,0.1983,4505.7,4505.6,0.686]
[1757642006067,0.5232,4506.1,4506.0,0.1178]
[1757642006271,0.7215,4506.1,4506.0,0.8038]
[1757642006471,0.9323,4506.1,4506.0,0.8038]
[1757642006671,0.9323,4506.1,4506.0,0.686]
[1757642007268,0.225,4506.1,4506.0,0.8038]
[1757642007474,3.3328,4506.5,4506.0,0.8038]
[1757642007675,0.497,4506.4,4506.3,0.4131]
[1757642007872,0.497,4506.4,4506.3,0.7145]
[1757642008266,0.193,4506.4,4506.3,0.7145]
[1757642010178,0.6987,4506.4,4506.3,0.7145]
[1757642011771,0.3947,4506.4,4506.1,0.5264]
[1757642011966,0.6987,4506.3,4506.2,0.2007]
[1757642012171,0.6987,4506.3,4506.2,0.5021]
[1757642012476,0.304,4506.6,4506.3,0.3014]
[1757642012669,0.497,4506.6,4506.5,0.5285]
[1757642012865,3.5118,4507.0,4506.6,0.3014]
[1757642013180,3.9065,4507.0,4506.9,0.7145]
[1757642013675,4.026,4507.0,4506.9,0.7145]
[1757642013874,0.193,4506.2,4506.1,3.6209]
[1757642014070,0.497,4506.2,4506.1,3.8459]
[1757642014572,3.3273,4507.0,4506.1,4.06781999]
[1757642014773,0.6987,4506.9,4506.8,0.7145]
[1757642015366,0.497,4506.9,4506.8,0.7145]
[1757642015572,0.193,4506.9,4506.8,0.7145]
[1757642016073,0.497,4506.9,4506.8,0.7145]
[1757642016675,0.193,4506.9,4506.8,0.7145]
[1757642017366,0.497,4506.9,4506.8,0.7145]
[1757642018073,0.6987,4506.9,4506.8,0.7145]
[1757642019575,0.1195,4507.0,4506.2,3.5092]
[1757642019780,0.3947,4506.3,4506.2,3.9223]
[1757642019978,0.6987,4506.3,4506.2,4.1473]
[1757642020278,0.6987,4506.3,4506.2,0.9395]
[1757642020480,0.6987,4506.3,4506.2,0.7145]
[1757642023672,0.304,4506.7,4506.2,3.9223]
[1757642023879,0.6987,4506.8,4506.7,0.2007]
[1757642024079,0.6987,4506.8,4506.7,0.5021]
[1757642024477,0.3947,4506.8,4506.2,3.5092]
[1757642024683,0.6987,4506.3,4506.2,0.7145]
[1757642025279,0.6987,4506.3,4506.2,0.2007]
[1757642025479,0.6987,4505.8,4505.7,3.6209]
[1757642025681,0.6987,4505.8,4505.7,3.8459]
[1757642025985,0.6987,4505.8,4505.7,4.1473]
[1757642026687,0.6987,4506.4,4506.3,0.2007]
[1757642026983,0.497,4506.4,4506.3,0.7145]
[1757642029784,0.193,4506.4,4506.3,0.7145]
[1757642029984,0.225,4506.9,4506.3,0.4131]
[1757642030177,0.9237,4506.9,4506.8,0.2007]
[1757642030383,1.51937977,4506.9,4506.8,0.5021]
[1757642030981,1.51938203,4506.9,4506.8,0.5021]
[1757642033186,1.51938203,4506.9,4506.8,0.7145]
[1757642033387,1.29438203,4506.9,4506.8,0.7145]
[1757642035391,0.99038203,4506.9,4506.8,0.3014]
[1757642035597,0.99038203,4506.9,4506.2,3.2078]
[1757642035598,1.29438203,4506.9,4506.6,0.3014]
[1757642035804,0.6987,4506.7,4506.6,0.5021]
[1757642036292,0.6987,4506.7,4506.6,0.2007]
[1757642037192,1.29557775,4506.7,4506.6,0.2007]
[1757642037494,0.1249,4506.5,4506.4,0.3014]
[1757642037702,0.8443,4506.5,4506.4,0.2007]
[1757642037901,0.8443,4506.5,4506.4,0.517]
[1757642040296,1.44080715,4506.5,4506.4,0.517]
[1757642040501,1.44080715,4506.5,4506.4,0.7259]
[1757642040700,1.44080715,4506.5,4506.4,0.2007]
[1757642042101,0.4087,4506.3,4506.2,0.5176]
[1757642042397,1.31590715,4506.3,4506.2,0.5176]
[1757642042601,1.31590715,4506.3,4506.2,0.2013]
[1757642044303,1.31590715,4506.3,4506.2,0.5176]
[1757642044504,0.7194,4506.3,4506.2,0.5176]
[1757642044694,0.7194,4506.3,4506.2,0.7265]
[1757642045002,1.31554725,4506.3,4506.2,0.7265]
[1757642045400,0.80714725,4506.3,4506.2,0.7265]
[1757642046301,0.225,4506.9,4506.3,0.3163]
[1757642046493,1.31564633,4506.8,4506.7,0.2013]
[1757642046801,0.4087,4506.3,4506.2,0.5176]
[1757642047102,0.7194,4506.3,4506.2,0.225]
[1757642047402,1.00490988,4506.3,4505.9,0.225]
[1757642047704,0.7194,4506.0,4505.9,0.7426]
[1757642048897,0.7194,4506.0,4505.9,0.9515]
[1757642049500,0.7194,4506.0,4505.9,0.7265]
[1757642049702,0.7194,4506.0,4505.9,0.2013]
[1757642049703,0.8443,4506.0,4505.9,0.2013]
[1757642050003,1.44062182,4506.0,4505.9,0.2013]
[1757642052203,1.44062182,4506.0,4505.7,0.3163]
[1757642052400,0.8443,4506.0,4505.9,0.7265]
[1757642052599,1.44017591,4506.0,4505.9,0.7265]
[1757642054810,0.8443,4506.0,4505.9,0.7265]
[1757642055010,0.7194,4506.0,4505.9,0.7265]
[1757642055211,1.58217779,4506.0,4505.6,3.2078]
[1757642055403,0.7194,4505.7,4505.6,3.4091]
[1757642055606,0.7194,4505.7,4505.4,0.3163]
[1757642055807,0.3107,4505.6,4505.5,0.2013]
[1757642056002,0.5217,4505.6,4505.5,0.7265]
[1757642056507,0.6337,4506.4,4506.3,0.2013]
[1757642056701,1.22938395,4506.4,4506.3,0.5176]
[1757642057112,1.54008395,4506.4,4506.3,0.5176]
[1757642057803,1.54008395,4506.4,4506.3,0.7265]
[1757642062013,0.211,4506.4,4506.3,0.7265]
[1757642062411,0.5217,4506.4,4506.3,0.7265]
[1757642062716,0.7194,4506.4,4506.3,0.7265]
[1757642064001,0.7194,4506.4,4506.1,0.3163]
[1757642064505,0.7194,4506.4,4506.3,0.2013]
[1757642064705,1.31510029,4506.4,4506.3,0.7265]
[1757642066004,1.00440029,4506.4,4505.9,0.225]
[1757642066214,0.8443,4506.0,4505.9,0.7426]
[1757642066417,0.8443,4506.0,4505.9,0.9515]
[1757642066914,0.7194,4506.0,4505.9,0.9515]